[Event "Early-Titled-Tuesday-Blitz-September-12-2023"]
[Site "Chess.com"]
[Date "2023.09.12"]
[Round "5"]
[White "OchsenfroschGambit"]
[Black "elchacal664"]
[Result "1-0"]
[WhiteElo "2318"]
[BlackElo "2416"]
[TimeControl "180+1"]
[EndTime "8:53:28 PDT"]
[Termination "OchsenfroschGambit won by resignation"]

1. d4 {[%clk 0:02:55.2]} 1... e5 {[%clk 0:02:58.6]} 2. dxe5 {[%clk 0:02:53.9]}
2... Nc6 {[%clk 0:02:59]} 3. Nf3 {[%clk 0:02:53.5]} 3... Qe7 {[%clk 0:02:59.6]}
4. Bf4 {[%clk 0:02:52.2]} 4... Qb4+ {[%clk 0:03:00.1]} 5. Bd2 {[%clk 0:02:51.7]}
5... Qxb2 {[%clk 0:03:00.8]} 6. Nc3 {[%clk 0:02:51.5]} 6... Bb4 {[%clk
0:03:01.2]} 7. Rb1 {[%clk 0:02:51]} 7... Qxc3 {[%clk 0:03:01.9]} 8. Bxc3 {[%clk
0:02:50.3]} 8... Bxc3+ {[%clk 0:03:02.8]} 9. Nd2 {[%clk 0:02:50]} 9... Nxe5
{[%clk 0:03:03.7]} 10. e4 {[%clk 0:02:34.4]} 10... Nf6 {[%clk 0:03:01.4]} 11.
Bd3 {[%clk 0:02:30.4]} 11... O-O {[%clk 0:02:59.9]} 12. O-O {[%clk 0:02:29.5]}
12... d6 {[%clk 0:02:54.9]} 13. h3 {[%clk 0:02:25.2]} 13... b6 {[%clk 0:02:46]}
14. Nf3 {[%clk 0:02:20.7]} 14... Bb7 {[%clk 0:02:40.7]} 15. Nxe5 {[%clk
0:02:13]} 15... dxe5 {[%clk 0:02:39.4]} 16. Qe2 {[%clk 0:02:12]} 16... Bd4
{[%clk 0:02:22.1]} 17. Kh2 {[%clk 0:02:10]} 17... Rfe8 {[%clk 0:02:18.6]} 18. f3
{[%clk 0:01:31.4]} 18... Rac8 {[%clk 0:02:10.7]} 19. Ba6 {[%clk 0:01:30.9]}
19... Rb8 {[%clk 0:02:05.5]} 20. Bxb7 {[%clk 0:01:29.5]} 20... Rxb7 {[%clk
0:02:06.4]} 21. Qb5 {[%clk 0:01:29.3]} 21... Re6 {[%clk 0:01:57.1]} 22. Rfd1
{[%clk 0:01:26.1]} 22... h5 {[%clk 0:01:51.6]} 23. c3 {[%clk 0:01:23.6]} 23...
Be3 {[%clk 0:01:49.2]} 24. Rd8+ {[%clk 0:01:23.1]} 24... Kh7 {[%clk 0:01:47.7]}
25. Qa6 {[%clk 0:01:22.1]} 25... h4 {[%clk 0:01:20.2]} 26. Qxb7 {[%clk 0:01:21]}
26... Bf4+ {[%clk 0:01:20.7]} 27. Kg1 {[%clk 0:01:18.8]} 27... Nh5 {[%clk
0:01:21.6]} 28. Re1 {[%clk 0:01:11.7]} 28... Bg5 {[%clk 0:01:02.2]} 29. Rd7
{[%clk 0:01:08.9]} 29... Rg6 {[%clk 0:01:00.7]} 30. Rxf7 {[%clk 0:01:02.3]}
30... Nf4 {[%clk 0:01:01.6]} 31. Kf1 {[%clk 0:00:55.3]} 31... Bh6 {[%clk
0:00:58.5]} 32. Rxf4 {[%clk 0:00:51.5]} 32... Bxf4 {[%clk 0:00:57.8]} 33. Qxc7
{[%clk 0:00:50.3]} 33... Rf6 {[%clk 0:00:54.9]} 34. Rd1 {[%clk 0:00:49.7]} 1-0

[Event "Early-Titled-Tuesday-Blitz-September-12-2023"]
[Site "Chess.com"]
[Date "2023.09.12"]
[Round "5"]
[White "Alphafischer2019"]
[Black "FredddieCroderg"]
[Result "0-1"]
[WhiteElo "2534"]
[BlackElo "2310"]
[TimeControl "180+1"]
[EndTime "8:53:32 PDT"]
[Termination "FredddieCroderg won by resignation"]

1. Nf3 {[%clk 0:03:00.9]} 1... d6 {[%clk 0:02:52.7]} 2. d4 {[%clk 0:03:00]} 2...
Bg4 {[%clk 0:02:51.1]} 3. g3 {[%clk 0:02:55.8]} 3... Bxf3 {[%clk 0:02:49.4]} 4.
exf3 {[%clk 0:02:56.7]} 4... g6 {[%clk 0:02:49.2]} 5. Bg2 {[%clk 0:02:57.3]}
5... Bg7 {[%clk 0:02:49.8]} 6. O-O {[%clk 0:02:57.9]} 6... c6 {[%clk 0:02:49.6]}
7. f4 {[%clk 0:02:58.4]} 7... d5 {[%clk 0:02:48.4]} 8. c3 {[%clk 0:02:58.7]}
8... e6 {[%clk 0:02:49]} 9. Nd2 {[%clk 0:02:57.3]} 9... Ne7 {[%clk 0:02:49.5]}
10. Nf3 {[%clk 0:02:57.9]} 10... Nd7 {[%clk 0:02:49.6]} 11. h4 {[%clk
0:02:54.6]} 11... h5 {[%clk 0:02:47.3]} 12. Ng5 {[%clk 0:02:55.2]} 12... Nf5
{[%clk 0:02:44.7]} 13. Re1 {[%clk 0:02:54.7]} 13... O-O {[%clk 0:02:44.6]} 14.
g4 {[%clk 0:02:54.7]} 14... hxg4 {[%clk 0:02:42.9]} 15. Qxg4 {[%clk 0:02:55.6]}
15... Nf6 {[%clk 0:02:43.2]} 16. Qh3 {[%clk 0:02:55.6]} 16... c5 {[%clk
0:02:24.4]} 17. Be3 {[%clk 0:02:47.4]} 17... cxd4 {[%clk 0:02:22.8]} 18. cxd4
{[%clk 0:02:47.9]} 18... Rc8 {[%clk 0:02:09.3]} 19. Bf3 {[%clk 0:02:42.4]} 19...
Bh6 {[%clk 0:01:54.2]} 20. h5 {[%clk 0:02:40.7]} 20... Bxg5 {[%clk 0:01:46.8]}
21. fxg5 {[%clk 0:02:37.6]} 21... Ne4 {[%clk 0:01:14]} 22. Bxe4 {[%clk
0:02:35.5]} 22... dxe4 {[%clk 0:01:12.8]} 23. hxg6 {[%clk 0:02:23.7]} 23... fxg6
{[%clk 0:01:13.7]} 24. Rac1 {[%clk 0:02:17.7]} 24... Rxc1 {[%clk 0:01:12.9]} 25.
Rxc1 {[%clk 0:02:17.7]} 25... Nxe3 {[%clk 0:01:07]} 26. Qxe6+ {[%clk 0:01:58.9]}
26... Kh8 {[%clk 0:00:48.5]} 27. Qh3+ {[%clk 0:01:56.9]} 27... Kg7 {[%clk
0:00:45.3]} 28. Qxe3 {[%clk 0:01:55.9]} 28... Rf3 {[%clk 0:00:44.9]} 29. Qd2
{[%clk 0:01:14.3]} 29... e3 {[%clk 0:00:44.4]} 30. fxe3 {[%clk 0:01:09.4]} 30...
Qxg5+ {[%clk 0:00:43.2]} 31. Qg2 {[%clk 0:00:52.6]} 31... Rg3 {[%clk 0:00:42.6]}
0-1

[Event "Early-Titled-Tuesday-Blitz-September-12-2023"]
[Site "Chess.com"]
[Date "2023.09.12"]
[Round "5"]
[White "DvaHrasta"]
[Black "Pumpkin_in_moonlight"]
[Result "1-0"]
[WhiteElo "2475"]
[BlackElo "2279"]
[TimeControl "180+1"]
[EndTime "8:53:41 PDT"]
[Termination "DvaHrasta won on time"]

1. c4 {[%clk 0:03:00.9]} 1... Nf6 {[%clk 0:02:54.1]} 2. g3 {[%clk 0:03:01]} 2...
e5 {[%clk 0:02:48.1]} 3. Bg2 {[%clk 0:03:00.8]} 3... d5 {[%clk 0:02:40.6]} 4.
cxd5 {[%clk 0:03:00.6]} 4... Nxd5 {[%clk 0:02:40.3]} 5. Nf3 {[%clk 0:03:00.8]}
5... Nc6 {[%clk 0:02:38.9]} 6. O-O {[%clk 0:03:00.6]} 6... Be6 {[%clk
0:02:33.9]} 7. d4 {[%clk 0:02:57.5]} 7... exd4 {[%clk 0:01:51.7]} 8. Nxd4 {[%clk
0:02:55.7]} 8... Nxd4 {[%clk 0:01:46.9]} 9. Qxd4 {[%clk 0:02:55.5]} 9... Nb4
{[%clk 0:01:44.7]} 10. Qc3 {[%clk 0:02:37.8]} 10... Nxa2 {[%clk 0:01:10.2]} 11.
Rxa2 {[%clk 0:02:27.3]} 11... Bxa2 {[%clk 0:01:09.4]} 12. Na3 {[%clk 0:02:10.6]}
12... Bxa3 {[%clk 0:01:01.2]} 13. Qxg7 {[%clk 0:02:04.3]} 13... Rf8 {[%clk
0:00:40.1]} 14. bxa3 {[%clk 0:02:03.5]} 14... Qd6 {[%clk 0:00:27.4]} 15. Bxb7
{[%clk 0:01:52.6]} 15... Rb8 {[%clk 0:00:18.6]} 16. Bf3 {[%clk 0:01:45.8]} 16...
Rb1 {[%clk 0:00:15.1]} 17. Qxh7 {[%clk 0:01:36.9]} 17... Qe5 {[%clk 0:00:08.9]}
18. Bf4 {[%clk 0:01:27.9]} 18... Rxf1+ {[%clk 0:00:08]} 19. Kxf1 {[%clk
0:01:28.1]} 19... Qa1+ {[%clk 0:00:07.6]} 20. Kg2 {[%clk 0:01:27.8]} 20... Qf6
{[%clk 0:00:06.1]} 21. Qc2 {[%clk 0:01:20.8]} 21... Be6 {[%clk 0:00:05.2]} 22.
Qxc7 {[%clk 0:01:16.8]} 22... Rh8 {[%clk 0:00:01.4]} 23. Bc6+ {[%clk 0:01:06.9]}
1-0

[Event "Early-Titled-Tuesday-Blitz-September-12-2023"]
[Site "Chess.com"]
[Date "2023.09.12"]
[Round "5"]
[White "abhidabhi"]
[Black "HajiyevKanan"]
[Result "1-0"]
[WhiteElo "2873"]
[BlackElo "2517"]
[TimeControl "180+1"]
[EndTime "8:53:43 PDT"]
[Termination "abhidabhi won on time"]

1. Nf3 {[%clk 0:03:00.9]} 1... c6 {[%clk 0:02:42.3]} 2. g3 {[%clk 0:03:01.8]}
2... d5 {[%clk 0:02:43.2]} 3. Bg2 {[%clk 0:03:01.4]} 3... Nf6 {[%clk 0:02:44]}
4. O-O {[%clk 0:03:00.5]} 4... g6 {[%clk 0:02:44.6]} 5. c4 {[%clk 0:02:59.7]}
5... Bg7 {[%clk 0:02:44.9]} 6. d4 {[%clk 0:02:57.3]} 6... O-O {[%clk 0:02:45.1]}
7. Qb3 {[%clk 0:02:54.7]} 7... Qb6 {[%clk 0:02:44.1]} 8. Nc3 {[%clk 0:02:54.2]}
8... Bf5 {[%clk 0:02:41.2]} 9. c5 {[%clk 0:02:28.8]} 9... Qxb3 {[%clk
0:02:40.7]} 10. axb3 {[%clk 0:02:28.6]} 10... Nbd7 {[%clk 0:02:38.7]} 11. b4
{[%clk 0:02:26.9]} 11... a6 {[%clk 0:02:38]} 12. Bf4 {[%clk 0:02:25]} 12... Rfe8
{[%clk 0:02:35.1]} 13. h3 {[%clk 0:02:24.5]} 13... h5 {[%clk 0:02:24]} 14. Nd2
{[%clk 0:02:19.3]} 14... e5 {[%clk 0:02:21.6]} 15. dxe5 {[%clk 0:02:19.2]} 15...
Nxe5 {[%clk 0:02:22]} 16. b5 {[%clk 0:02:04.6]} 16... Nfd7 {[%clk 0:01:51.1]}
17. bxc6 {[%clk 0:02:00.1]} 17... bxc6 {[%clk 0:01:48.6]} 18. e4 {[%clk
0:01:59.2]} 18... dxe4 {[%clk 0:01:33.1]} 19. Ndxe4 {[%clk 0:01:58.9]} 19... Nd3
{[%clk 0:01:31.2]} 20. Nd6 {[%clk 0:01:58.9]} 20... Nxf4 {[%clk 0:01:09.2]} 21.
gxf4 {[%clk 0:01:58.7]} 21... Reb8 {[%clk 0:00:49.2]} 22. Bxc6 {[%clk
0:01:56.1]} 22... Ra7 {[%clk 0:00:47.6]} 23. Ncb5 {[%clk 0:01:54.4]} 23... axb5
{[%clk 0:00:18]} 24. Rxa7 {[%clk 0:01:53.4]} 24... Nxc5 {[%clk 0:00:18.7]} 25.
Nxf5 {[%clk 0:01:52.3]} 25... gxf5 {[%clk 0:00:19.3]} 26. Bd5 {[%clk 0:01:51.2]}
26... Bxb2 {[%clk 0:00:14.4]} 27. Rxf7 {[%clk 0:01:47.7]} 27... Kh8 {[%clk
0:00:15]} 28. Rxf5 {[%clk 0:01:42.7]} 28... Nd3 {[%clk 0:00:14.1]} 29. Kh2
{[%clk 0:01:38.2]} 29... Nxf4 {[%clk 0:00:12.8]} 30. Bb3 {[%clk 0:01:31.3]}
30... h4 {[%clk 0:00:03.6]} 31. Rg1 {[%clk 0:01:29.2]} 31... Rb7 {[%clk
0:00:01.7]} 32. Rg4 {[%clk 0:01:28.4]} 1-0

[Event "Early-Titled-Tuesday-Blitz-September-12-2023"]
[Site "Chess.com"]
[Date "2023.09.12"]
[Round "5"]
[White "emeli_chess"]
[Black "Doomfist26"]
[Result "0-1"]
[WhiteElo "2351"]
[BlackElo "2621"]
[TimeControl "180+1"]
[EndTime "8:53:43 PDT"]
[Termination "Doomfist26 won by resignation"]

1. d4 {[%clk 0:03:00.9]} 1... Nf6 {[%clk 0:02:58.9]} 2. c4 {[%clk 0:03:01]} 2...
g6 {[%clk 0:02:59.1]} 3. Nc3 {[%clk 0:02:59.8]} 3... Bg7 {[%clk 0:02:59.6]} 4.
e4 {[%clk 0:02:59.7]} 4... d6 {[%clk 0:03:00.1]} 5. f3 {[%clk 0:02:59.6]} 5...
O-O {[%clk 0:03:00.2]} 6. Be3 {[%clk 0:02:59.9]} 6... c5 {[%clk 0:03:00.8]} 7.
Nge2 {[%clk 0:02:59.3]} 7... Nc6 {[%clk 0:02:59.7]} 8. d5 {[%clk 0:02:59.5]}
8... Ne5 {[%clk 0:03:00]} 9. Ng3 {[%clk 0:02:59.6]} 9... h5 {[%clk 0:02:59.4]}
10. Be2 {[%clk 0:02:59]} 10... a6 {[%clk 0:02:57.6]} 11. a4 {[%clk 0:02:53.9]}
11... e6 {[%clk 0:02:57.4]} 12. Bg5 {[%clk 0:02:49.4]} 12... Qb6 {[%clk
0:02:54.1]} 13. Ra3 {[%clk 0:02:38.1]} 13... Nh7 {[%clk 0:02:50.9]} 14. Rb3
{[%clk 0:02:31.7]} 14... Qc7 {[%clk 0:02:47.6]} 15. Be3 {[%clk 0:02:24.6]} 15...
f5 {[%clk 0:02:47.8]} 16. Qd2 {[%clk 0:02:08.2]} 16... h4 {[%clk 0:02:25.9]} 17.
Nf1 {[%clk 0:02:06.9]} 17... fxe4 {[%clk 0:02:25.3]} 18. Nxe4 {[%clk 0:02:04.8]}
18... h3 {[%clk 0:02:15.1]} 19. Rg1 {[%clk 0:01:51.8]} 19... b5 {[%clk
0:01:52.1]} 20. f4 {[%clk 0:01:32.4]} 20... Nxc4 {[%clk 0:01:50.4]} 21. Bxc4
{[%clk 0:01:32.2]} 21... bxc4 {[%clk 0:01:50.8]} 22. Ra3 {[%clk 0:01:14.8]}
22... Bb7 {[%clk 0:01:40.3]} 23. gxh3 {[%clk 0:01:07]} 23... exd5 {[%clk
0:01:39.9]} 24. Ng5 {[%clk 0:01:01.7]} 24... d4 {[%clk 0:01:35.4]} 25. Ne6
{[%clk 0:00:43.4]} 25... Qe7 {[%clk 0:01:31.9]} 26. Nxf8 {[%clk 0:00:39.5]}
26... Nxf8 {[%clk 0:01:32.8]} 27. Kd1 {[%clk 0:00:28.3]} 27... dxe3 {[%clk
0:01:32.8]} 28. Rxe3 {[%clk 0:00:27.4]} 28... Qd7 {[%clk 0:01:27.7]} 29. h4
{[%clk 0:00:25.1]} 29... Qxa4+ {[%clk 0:01:27.3]} 30. Ke1 {[%clk 0:00:20.1]}
30... Qa1+ {[%clk 0:01:22.8]} 31. Kf2 {[%clk 0:00:20.2]} 31... Qxb2 {[%clk
0:01:21.2]} 32. Qxb2 {[%clk 0:00:18.6]} 32... Bxb2 {[%clk 0:01:21.5]} 33. h5
{[%clk 0:00:19]} 33... Bd4 {[%clk 0:01:22.1]} 34. hxg6 {[%clk 0:00:19.1]} 34...
c3 {[%clk 0:01:20.8]} 35. f5 {[%clk 0:00:17.9]} 35... c2 {[%clk 0:01:20.6]} 36.
Nd2 {[%clk 0:00:17.2]} 36... Re8 {[%clk 0:01:20.7]} 0-1

[Event "Early-Titled-Tuesday-Blitz-September-12-2023"]
[Site "Chess.com"]
[Date "2023.09.12"]
[Round "5"]
[White "Zurability"]
[Black "Actuary44"]
[Result "1-0"]
[WhiteElo "2793"]
[BlackElo "2514"]
[TimeControl "180+1"]
[EndTime "8:53:44 PDT"]
[Termination "Zurability won by resignation"]

1. b4 {[%clk 0:02:56.4]} 1... e5 {[%clk 0:02:59.3]} 2. Bb2 {[%clk 0:02:56.2]}
2... d6 {[%clk 0:02:59.9]} 3. c4 {[%clk 0:02:52.1]} 3... f5 {[%clk 0:02:59.9]}
4. e3 {[%clk 0:02:50]} 4... Nf6 {[%clk 0:03:00.2]} 5. Nf3 {[%clk 0:02:48.8]}
5... Be7 {[%clk 0:02:59.3]} 6. d4 {[%clk 0:02:46.8]} 6... e4 {[%clk 0:02:59.1]}
7. Ng5 {[%clk 0:02:47.3]} 7... h6 {[%clk 0:02:57.6]} 8. Nh3 {[%clk 0:02:47.3]}
8... O-O {[%clk 0:02:57.9]} 9. Nf4 {[%clk 0:02:46]} 9... Qe8 {[%clk 0:02:56.8]}
10. h4 {[%clk 0:02:46.1]} 10... c6 {[%clk 0:02:39.1]} 11. Nc3 {[%clk 0:02:44.1]}
11... Nbd7 {[%clk 0:02:38.1]} 12. Ne6 {[%clk 0:02:37]} 12... Nb6 {[%clk
0:02:33.1]} 13. Nxf8 {[%clk 0:02:33]} 13... Bxf8 {[%clk 0:02:33.5]} 14. d5
{[%clk 0:02:19.8]} 14... cxd5 {[%clk 0:02:30.1]} 15. Nxd5 {[%clk 0:02:16.1]}
15... Nbxd5 {[%clk 0:02:29.3]} 16. cxd5 {[%clk 0:02:17]} 16... f4 {[%clk
0:02:29.1]} 17. Bxf6 {[%clk 0:02:00.6]} 17... gxf6 {[%clk 0:02:27.5]} 18. exf4
{[%clk 0:02:01.1]} 18... f5 {[%clk 0:02:21.5]} 19. Rc1 {[%clk 0:01:57.6]} 19...
Bg7 {[%clk 0:02:17.1]} 20. Be2 {[%clk 0:01:57.8]} 20... Qg6 {[%clk 0:02:12]} 21.
Kf1 {[%clk 0:01:47.8]} 21... Qf6 {[%clk 0:01:38.6]} 22. Rh3 {[%clk 0:01:46]}
22... Bd7 {[%clk 0:01:33.5]} 23. Rc7 {[%clk 0:01:42.2]} 23... Qd8 {[%clk
0:01:12.7]} 24. Qc2 {[%clk 0:01:40.1]} 24... Rc8 {[%clk 0:01:09.9]} 25. Rxc8
{[%clk 0:01:38.8]} 25... Bxc8 {[%clk 0:01:10.8]} 26. Rg3 {[%clk 0:01:30.7]}
26... Kh7 {[%clk 0:01:05]} 27. Bh5 {[%clk 0:01:24.8]} 27... Bd7 {[%clk
0:01:01.1]} 28. Bg6+ {[%clk 0:01:04.4]} 28... Kh8 {[%clk 0:01:00.5]} 29. Kg1
{[%clk 0:00:59.6]} 29... Qxh4 {[%clk 0:00:28.6]} 30. Qc7 {[%clk 0:00:57]} 30...
Qe7 {[%clk 0:00:24.3]} 31. Bxf5 {[%clk 0:00:55.3]} 1-0

[Event "Early-Titled-Tuesday-Blitz-September-12-2023"]
[Site "Chess.com"]
[Date "2023.09.12"]
[Round "5"]
[White "RandomNoob04"]
[Black "Happy1712Drummer"]
[Result "1-0"]
[WhiteElo "2626"]
[BlackElo "2352"]
[TimeControl "180+1"]
[EndTime "8:53:46 PDT"]
[Termination "RandomNoob04 won on time"]

1. e4 {[%clk 0:03:00.9]} 1... c5 {[%clk 0:02:56.3]} 2. d4 {[%clk 0:03:00.8]}
2... cxd4 {[%clk 0:02:49.7]} 3. c3 {[%clk 0:03:01]} 3... d5 {[%clk 0:02:44.9]}
4. exd5 {[%clk 0:03:00.2]} 4... Nf6 {[%clk 0:02:41.8]} 5. Bb5+ {[%clk 0:02:55]}
5... Bd7 {[%clk 0:02:36]} 6. Bxd7+ {[%clk 0:02:50.5]} 6... Qxd7 {[%clk
0:02:36.2]} 7. c4 {[%clk 0:02:36.3]} 7... e6 {[%clk 0:02:33.9]} 8. dxe6 {[%clk
0:02:33.9]} 8... Qxe6+ {[%clk 0:02:33.7]} 9. Ne2 {[%clk 0:02:33.9]} 9... Bb4+
{[%clk 0:02:24.9]} 10. Bd2 {[%clk 0:02:27.3]} 10... Bxd2+ {[%clk 0:02:10.8]} 11.
Qxd2 {[%clk 0:02:28.2]} 11... Nc6 {[%clk 0:01:57.1]} 12. O-O {[%clk 0:02:24.1]}
12... O-O-O {[%clk 0:01:35.8]} 13. Na3 {[%clk 0:02:10.7]} 13... Ne4 {[%clk
0:01:21]} 14. Qf4 {[%clk 0:02:02.9]} 14... g5 {[%clk 0:01:19.2]} 15. Qf3 {[%clk
0:01:57.5]} 15... Nd2 {[%clk 0:01:19.3]} 16. Qd3 {[%clk 0:01:47.4]} 16... Nxf1
{[%clk 0:01:19]} 17. Rxf1 {[%clk 0:01:48.3]} 17... Ne5 {[%clk 0:01:17.4]} 18.
Qe4 {[%clk 0:01:42.5]} 18... f5 {[%clk 0:00:55.4]} 19. Nxd4 {[%clk 0:01:38.5]}
19... fxe4 {[%clk 0:00:43.4]} 20. Nxe6 {[%clk 0:01:38.7]} 20... Rd2 {[%clk
0:00:24.5]} 21. Nxg5 {[%clk 0:01:37.9]} 21... Rxb2 {[%clk 0:00:24.3]} 22. Nxe4
{[%clk 0:01:38.1]} 22... Rxa2 {[%clk 0:00:23.8]} 23. Nb5 {[%clk 0:01:38.1]}
23... Kb8 {[%clk 0:00:18.7]} 24. Nbd6 {[%clk 0:01:32.9]} 24... a5 {[%clk
0:00:16.3]} 25. Rb1 {[%clk 0:01:31.8]} 25... Ka8 {[%clk 0:00:10.6]} 26. f4
{[%clk 0:01:25.4]} 26... Nc6 {[%clk 0:00:09.9]} 27. f5 {[%clk 0:01:18.7]} 27...
Rb8 {[%clk 0:00:07.1]} 28. f6 {[%clk 0:01:18.8]} 28... a4 {[%clk 0:00:07.3]} 29.
f7 {[%clk 0:01:18.8]} 29... a3 {[%clk 0:00:06.8]} 30. Rxb7 {[%clk 0:01:18.4]}
30... Ra1+ {[%clk 0:00:02.1]} 31. Kf2 {[%clk 0:01:18.2]} 1-0

[Event "Early-Titled-Tuesday-Blitz-September-12-2023"]
[Site "Chess.com"]
[Date "2023.09.12"]
[Round "5"]
[White "GMJustin"]
[Black "Dacean99"]
[Result "0-1"]
[WhiteElo "2255"]
[BlackElo "2516"]
[TimeControl "180+1"]
[EndTime "8:53:47 PDT"]
[Termination "Dacean99 won on time"]

1. d4 {[%clk 0:02:50]} 1... d5 {[%clk 0:03:00.9]} 2. Nd2 {[%clk 0:02:43.2]} 2...
c5 {[%clk 0:03:00.8]} 3. dxc5 {[%clk 0:02:38.9]} 3... Nf6 {[%clk 0:02:59.6]} 4.
Nb3 {[%clk 0:02:21.4]} 4... e5 {[%clk 0:02:59]} 5. Bg5 {[%clk 0:02:18.1]} 5...
Bxc5 {[%clk 0:02:55.8]} 6. Bxf6 {[%clk 0:02:05.5]} 6... gxf6 {[%clk 0:02:55.8]}
7. Nxc5 {[%clk 0:01:58.3]} 7... Qa5+ {[%clk 0:02:56.2]} 8. c3 {[%clk 0:01:57.2]}
8... Qxc5 {[%clk 0:02:56.4]} 9. e3 {[%clk 0:01:54.3]} 9... Nc6 {[%clk
0:02:56.5]} 10. Nf3 {[%clk 0:01:49.8]} 10... Bg4 {[%clk 0:02:52.3]} 11. Be2
{[%clk 0:01:49.4]} 11... Rd8 {[%clk 0:02:51.2]} 12. Nh4 {[%clk 0:01:36.8]} 12...
Bxe2 {[%clk 0:02:46.8]} 13. Qxe2 {[%clk 0:01:35.6]} 13... Ne7 {[%clk 0:02:46.7]}
14. O-O {[%clk 0:01:27.7]} 14... a5 {[%clk 0:02:40.1]} 15. e4 {[%clk 0:01:20.6]}
15... d4 {[%clk 0:02:30.1]} 16. cxd4 {[%clk 0:01:15]} 16... exd4 {[%clk
0:02:29.6]} 17. Rac1 {[%clk 0:01:03.9]} 17... Qg5 {[%clk 0:01:27.5]} 18. Nf5
{[%clk 0:00:42.6]} 18... d3 {[%clk 0:01:23.5]} 19. Qf3 {[%clk 0:00:22.9]} 19...
d2 {[%clk 0:01:19.7]} 20. Rc2 {[%clk 0:00:04.1]} 20... Nxf5 {[%clk 0:01:18]} 21.
exf5 {[%clk 0:00:03.6]} 21... O-O {[%clk 0:01:17.1]} 22. Rd1 {[%clk 0:00:02.1]}
22... Rd7 {[%clk 0:01:15.6]} 23. g3 {[%clk 0:00:01.8]} 23... Re8 {[%clk
0:01:14.9]} 24. h4 {[%clk 0:00:00.7]} 24... Qh6 {[%clk 0:01:09]} 0-1

[Event "Early-Titled-Tuesday-Blitz-September-12-2023"]
[Site "Chess.com"]
[Date "2023.09.12"]
[Round "5"]
[White "Gogolev_Artemy"]
[Black "pankajfm"]
[Result "0-1"]
[WhiteElo "2389"]
[BlackElo "2113"]
[TimeControl "180+1"]
[EndTime "8:53:52 PDT"]
[Termination "pankajfm won by resignation"]

1. d4 {[%clk 0:02:56.7]} 1... Nf6 {[%clk 0:02:59.7]} 2. c4 {[%clk 0:02:56.9]}
2... g6 {[%clk 0:03:00.1]} 3. g3 {[%clk 0:02:56]} 3... Bg7 {[%clk 0:03:00.6]} 4.
Nc3 {[%clk 0:02:56.6]} 4... O-O {[%clk 0:03:01.1]} 5. Bg2 {[%clk 0:02:56.6]}
5... d6 {[%clk 0:03:01.6]} 6. h3 {[%clk 0:02:56.9]} 6... a6 {[%clk 0:02:57.9]}
7. Nf3 {[%clk 0:02:52.5]} 7... Nc6 {[%clk 0:02:57.8]} 8. e4 {[%clk 0:02:37.4]}
8... Rb8 {[%clk 0:02:56.7]} 9. O-O {[%clk 0:02:36.1]} 9... b5 {[%clk 0:02:49.7]}
10. cxb5 {[%clk 0:02:29.4]} 10... axb5 {[%clk 0:02:50.6]} 11. d5 {[%clk
0:02:29.3]} 11... Na5 {[%clk 0:02:50.1]} 12. b4 {[%clk 0:02:29.1]} 12... Nc4
{[%clk 0:02:49.8]} 13. Nd4 {[%clk 0:02:28.2]} 13... Bd7 {[%clk 0:02:34.7]} 14.
Qd3 {[%clk 0:02:04.2]} 14... Ne5 {[%clk 0:02:28.5]} 15. Qe2 {[%clk 0:01:57.4]}
15... c5 {[%clk 0:02:15.7]} 16. dxc6 {[%clk 0:01:07]} 16... Nxc6 {[%clk
0:02:14.8]} 17. Nxc6 {[%clk 0:01:06.5]} 17... Bxc6 {[%clk 0:02:15.7]} 18. Bb2
{[%clk 0:01:06.2]} 18... Qb6 {[%clk 0:02:10.1]} 19. Nd5 {[%clk 0:00:51.4]} 19...
Bxd5 {[%clk 0:01:17.5]} 20. exd5 {[%clk 0:00:51]} 20... Rfe8 {[%clk 0:01:18.2]}
21. Rac1 {[%clk 0:00:51]} 21... e5 {[%clk 0:01:13]} 22. dxe6 {[%clk 0:00:44.2]}
22... Rxe6 {[%clk 0:01:12.4]} 23. Qd3 {[%clk 0:00:44]} 23... d5 {[%clk 0:01:11]}
24. Rc5 {[%clk 0:00:23.1]} 24... Ne4 {[%clk 0:01:05.2]} 25. Rxd5 {[%clk
0:00:14.2]} 25... Nxf2 {[%clk 0:01:02.5]} 26. Qd2 {[%clk 0:00:11.3]} 26... Ne4+
{[%clk 0:01:00.4]} 0-1

[Event "Early-Titled-Tuesday-Blitz-September-12-2023"]
[Site "Chess.com"]
[Date "2023.09.12"]
[Round "5"]
[White "Flaccidmoves"]
[Black "Chessmissile07"]
[Result "0-1"]
[WhiteElo "2474"]
[BlackElo "2874"]
[TimeControl "180+1"]
[EndTime "8:53:53 PDT"]
[Termination "Chessmissile07 won by checkmate"]

1. e4 {[%clk 0:02:33.4]} 1... g6 {[%clk 0:02:59.5]} 2. d4 {[%clk 0:02:33]} 2...
Nf6 {[%clk 0:02:59.7]} 3. e5 {[%clk 0:02:32.4]} 3... Nh5 {[%clk 0:03:00]} 4. g4
{[%clk 0:02:09.1]} 4... Ng7 {[%clk 0:02:59.4]} 5. Bg2 {[%clk 0:02:03.8]} 5... d5
{[%clk 0:02:56.8]} 6. c4 {[%clk 0:01:45]} 6... dxc4 {[%clk 0:02:54.8]} 7. Nc3
{[%clk 0:01:34.6]} 7... h5 {[%clk 0:02:51.3]} 8. g5 {[%clk 0:01:30.3]} 8... Nf5
{[%clk 0:02:29.4]} 9. d5 {[%clk 0:01:22.7]} 9... Bg7 {[%clk 0:02:29.3]} 10. f4
{[%clk 0:01:14.1]} 10... O-O {[%clk 0:02:09]} 11. Nf3 {[%clk 0:01:12.5]} 11...
c6 {[%clk 0:02:08.6]} 12. O-O {[%clk 0:01:10.7]} 12... cxd5 {[%clk 0:02:08.3]}
13. Nxd5 {[%clk 0:01:08.7]} 13... Nc6 {[%clk 0:02:08.3]} 14. b3 {[%clk
0:01:00.3]} 14... cxb3 {[%clk 0:02:06.2]} 15. axb3 {[%clk 0:01:01.2]} 15... Be6
{[%clk 0:02:06.3]} 16. Ne1 {[%clk 0:00:40.9]} 16... Nfd4 {[%clk 0:02:00.2]} 17.
Ne3 {[%clk 0:00:32]} 17... Nxb3 {[%clk 0:01:58.5]} 18. Qxd8 {[%clk 0:00:27.8]}
18... Rfxd8 {[%clk 0:01:59.4]} 19. Rb1 {[%clk 0:00:27.8]} 19... Nxc1 {[%clk
0:01:45.3]} 20. Rxc1 {[%clk 0:00:27.5]} 20... a5 {[%clk 0:01:44.8]} 21. N1c2
{[%clk 0:00:20.8]} 21... a4 {[%clk 0:01:41.5]} 22. Na3 {[%clk 0:00:20.1]} 22...
Rd3 {[%clk 0:01:41]} 23. Nec2 {[%clk 0:00:19.9]} 23... Bf5 {[%clk 0:01:34.7]}
24. Rfd1 {[%clk 0:00:14.2]} 24... e6 {[%clk 0:01:34.8]} 25. Rxd3 {[%clk
0:00:13.6]} 25... Bxd3 {[%clk 0:01:35.7]} 26. Bxc6 {[%clk 0:00:12.7]} 26... bxc6
{[%clk 0:01:35.7]} 27. Nb4 {[%clk 0:00:13.2]} 27... Be4 {[%clk 0:01:35.9]} 28.
Nxc6 {[%clk 0:00:12.4]} 28... Bf8 {[%clk 0:01:35.6]} 29. Nb5 {[%clk 0:00:06.3]}
29... a3 {[%clk 0:01:27.7]} 30. Ncd4 {[%clk 0:00:06.7]} 30... a2 {[%clk
0:01:27]} 31. Nb3 {[%clk 0:00:07]} 31... Bd5 {[%clk 0:01:23.7]} 32. N5d4 {[%clk
0:00:06.8]} 32... Rb8 {[%clk 0:01:22.7]} 33. Na1 {[%clk 0:00:06.9]} 33... Rb1
{[%clk 0:01:22.4]} 34. Ne2 {[%clk 0:00:07.2]} 34... Ba3 {[%clk 0:01:21.4]} 35.
Rf1 {[%clk 0:00:04.7]} 35... Bc5+ {[%clk 0:01:18.7]} 36. Nd4 {[%clk 0:00:01.8]}
36... Bxd4# {[%clk 0:01:19]} 0-1